[Event "Polofinale MCR junioru 2023"]
[Site "Czech Republic"]
[Date "2023.11.13"]
[Round "3.19"]
[White "Jasso, Matej"]
[Black "Pelc, Adam"]
[Result "1/2-1/2"]
[TimeControl "90 min per 40 moves + 15 min + 30 sec / move from move 1"]
[WhiteFideId "23710748"]
[BlackFideId "23723033"]
[WhiteElo "2033"]
[BlackElo "1856"]

1. e4 {[%clk 01:30:47]} {[%emt 00:00:12]} c6 {[%clk 01:30:19]} {[%emt
00:00:43]} 2. d4 {[%clk 01:31:11]} {[%emt 00:00:06]} d5 {[%clk 01:30:22]}
{[%emt 00:00:26]} 3. exd5 {[%clk 01:31:35]} {[%emt 00:00:07]} cxd5 {[%clk
01:30:43]} {[%emt 00:00:09]} 4. Bd3 {[%clk 01:32:00]} {[%emt 00:00:05]} Nc6
{[%clk 01:29:45]} {[%emt 00:01:28]} 5. c3 {[%clk 01:32:22]} {[%emt 00:00:07]}
Nf6 {[%clk 01:29:30]} {[%emt 00:00:46]} 6. h3 {[%clk 01:32:47]} {[%emt
00:00:06]} e6 {[%clk 01:26:53]} {[%emt 00:03:07]} 7. Bf4 {[%clk 01:32:18]}
{[%emt 00:00:58]} Bd6 {[%clk 01:26:39]} {[%emt 00:00:44]} 8. Bxd6 {[%clk
01:32:42]} {[%emt 00:00:06]} Qxd6 {[%clk 01:27:05]} {[%emt 00:00:04]} 9. Nf3
{[%clk 01:33:06]} {[%emt 00:00:05]} O-O {[%clk 01:26:13]} {[%emt 00:01:22]} 10.
O-O {[%clk 01:33:32]} {[%emt 00:00:05]} Ne4 {[%clk 01:09:22]} {[%emt 00:17:20]}
11. b4 {[%clk 01:15:50]} {[%emt 00:18:13]} a6 {[%clk 01:03:29]} {[%emt
00:06:23]} 12. Bxe4 {[%clk 00:45:44]} {[%emt 00:30:36]} dxe4 {[%clk 01:03:52]}
{[%emt 00:00:06]} 13. Nfd2 {[%clk 00:46:08]} {[%emt 00:00:06]} Qd5 {[%clk
01:01:51]} {[%emt 00:02:31]} 14. Qe2 {[%clk 00:43:52]} {[%emt 00:02:46]} f5
{[%clk 01:01:39]} {[%emt 00:00:42]} 15. Nc4 {[%clk 00:43:59]} {[%emt 00:00:23]}
Qd8 {[%clk 00:58:03]} {[%emt 00:04:06]} 16. a4 {[%clk 00:32:18]} {[%emt
00:12:11]} Qc7 {[%clk 00:40:06]} {[%emt 00:18:26]} 17. Nbd2 {[%clk 00:27:43]}
{[%emt 00:05:05]} Ne7 {[%clk 00:38:56]} {[%emt 00:01:40]} 18. Rfc1 {[%clk
00:25:53]} {[%emt 00:02:20]} Ng6 {[%clk 00:38:38]} {[%emt 00:00:48]} 19. a5
{[%clk 00:20:16]} {[%emt 00:06:08]} Bd7 {[%clk 00:34:45]} {[%emt 00:04:22]} 20.
Nb6 {[%clk 00:18:56]} {[%emt 00:01:50]} Rad8 {[%clk 00:35:03]} {[%emt
00:00:11]} 21. Nxd7 {[%clk 00:11:05]} {[%emt 00:08:21]} Rxd7 {[%clk 00:35:24]}
{[%emt 00:00:09]} 22. g3 {[%clk 00:10:26]} {[%emt 00:01:10]} e5 {[%clk
00:29:02]} {[%emt 00:06:52]} 23. Nb3 {[%clk 00:09:08]} {[%emt 00:01:47]}
1/2-1/2

[Event "Polofinale MCR junioru 2023"]
[Site "Czech Republic"]
[Date "2023.11.13"]
[Round "3.20"]
[White "Tillman, Stanislav"]
[Black "Bednar, Milos"]
[Result "1-0"]
[TimeControl "90 min per 40 moves + 15 min + 30 sec / move from move 1"]
[WhiteFideId "23714247"]
[BlackFideId "23709812"]
[WhiteElo "2021"]
[BlackElo "1833"]

1. e4 {[%clk 01:30:57]} {[%emt 00:00:02]} e5 {[%clk 01:23:57]} {[%emt
00:07:04]} 2. Nf3 {[%clk 01:31:19]} {[%emt 00:00:07]} Nc6 {[%clk 01:24:25]}
{[%emt 00:00:03]} 3. Bc4 {[%clk 01:31:18]} {[%emt 00:00:31]} Bc5 {[%clk
01:24:51]} {[%emt 00:00:05]} 4. c3 {[%clk 01:31:33]} {[%emt 00:00:14]} Nf6
{[%clk 01:24:40]} {[%emt 00:00:42]} 5. d3 {[%clk 01:31:38]} {[%emt 00:00:24]}
O-O {[%clk 01:24:34]} {[%emt 00:00:37]} 6. O-O {[%clk 01:31:57]} {[%emt
00:00:10]} d5 {[%clk 01:24:33]} {[%emt 00:00:32]} 7. exd5 {[%clk 01:31:45]}
{[%emt 00:00:42]} Nxd5 {[%clk 01:24:36]} {[%emt 00:00:27]} 8. Bg5 {[%clk
01:18:17]} {[%emt 00:13:57]} Qd6 {[%clk 01:23:41]} {[%emt 00:01:26]} 9. Nbd2
{[%clk 01:17:22]} {[%emt 00:01:25]} Nf6 {[%clk 01:05:04]} {[%emt 00:19:07]} 10.
Bxf6 {[%clk 01:02:58]} {[%emt 00:14:54]} Qxf6 {[%clk 01:05:22]} {[%emt
00:00:12]} 11. Ne4 {[%clk 01:03:21]} {[%emt 00:00:07]} Qe7 {[%clk 01:05:46]}
{[%emt 00:00:06]} 12. Nxc5 {[%clk 01:03:41]} {[%emt 00:00:09]} Qxc5 {[%clk
01:06:12]} {[%emt 00:00:05]} 13. Qe2 {[%clk 01:01:53]} {[%emt 00:02:17]} a5
{[%clk 01:01:01]} {[%emt 00:05:42]} 14. Rfe1 {[%clk 01:01:39]} {[%emt
00:00:43]} b5 {[%clk 01:00:14]} {[%emt 00:01:17]} 15. Bb3 {[%clk 01:01:04]}
{[%emt 00:01:05]} a4 {[%clk 00:59:51]} {[%emt 00:00:54]} 16. Bc2 {[%clk
01:01:27]} {[%emt 00:00:06]} a3 {[%clk 00:54:59]} {[%emt 00:05:22]} 17. Nxe5
{[%clk 00:39:53]} {[%emt 00:22:04]} axb2 {[%clk 00:52:43]} {[%emt 00:02:47]} 18.
Rab1 {[%clk 00:39:49]} {[%emt 00:00:34]} Re8 {[%clk 00:35:36]} {[%emt
00:17:38]} 19. d4 {[%clk 00:38:50]} {[%emt 00:01:29]} Qxc3 {[%clk 00:34:30]}
{[%emt 00:01:36]} 20. Bxh7+ {[%clk 00:38:56]} {[%emt 00:00:23]} Kh8 {[%clk
00:32:55]} {[%emt 00:02:06]} 21. Nxf7+ {[%clk 00:38:52]} {[%emt 00:00:34]} 1-0

[Event "Polofinale MCR junioru 2023"]
[Site "Czech Republic"]
[Date "2023.11.13"]
[Round "3.21"]
[White "Roubal, Matyas"]
[Black "Andrle, Filip"]
[Result "1/2-1/2"]
[TimeControl "90 min per 40 moves + 15 min + 30 sec / move from move 1"]
[WhiteFideId "23727152"]
[BlackFideId "23718749"]
[WhiteElo "1837"]
[BlackElo "2005"]

1. e4 {[%clk 01:30:57]} {[%emt 00:00:03]} c5 {[%clk 01:30:53]} {[%emt
00:00:08]} 2. Nf3 {[%clk 01:31:23]} {[%emt 00:00:04]} Nc6 {[%clk 01:31:16]}
{[%emt 00:00:07]} 3. d4 {[%clk 01:31:47]} {[%emt 00:00:07]} cxd4 {[%clk
01:31:39]} {[%emt 00:00:06]} 4. Nxd4 {[%clk 01:32:13]} {[%emt 00:00:05]} Nf6
{[%clk 01:31:55]} {[%emt 00:00:13]} 5. Nc3 {[%clk 01:32:39]} {[%emt 00:00:04]}
d6 {[%clk 01:32:15]} {[%emt 00:00:09]} 6. f3 {[%clk 01:31:20]} {[%emt
00:01:49]} e5 {[%clk 01:32:03]} {[%emt 00:00:42]} 7. Nb3 {[%clk 01:31:16]}
{[%emt 00:00:35]} Be6 {[%clk 01:30:47]} {[%emt 00:01:46]} 8. Be3 {[%clk
01:31:38]} {[%emt 00:00:08]} Be7 {[%clk 01:29:46]} {[%emt 00:01:31]} 9. Nd5
{[%clk 01:30:50]} {[%emt 00:01:18]} Rc8 {[%clk 01:26:49]} {[%emt 00:03:27]} 10.
Be2 {[%clk 01:27:58]} {[%emt 00:03:22]} O-O {[%clk 01:25:04]} {[%emt 00:02:14]}
11. Qd2 {[%clk 01:26:35]} {[%emt 00:01:53]} Kh8 {[%clk 01:14:15]} {[%emt
00:11:19]} 12. O-O-O {[%clk 01:23:46]} {[%emt 00:03:20]} Nd4 {[%clk 01:05:15]}
{[%emt 00:09:29]} 13. Nxd4 {[%clk 01:22:46]} {[%emt 00:01:31]} exd4 {[%clk
01:01:42]} {[%emt 00:04:03]} 14. Bxd4 {[%clk 01:20:09]} {[%emt 00:03:08]} Nxd5
{[%clk 00:59:27]} {[%emt 00:02:46]} 15. exd5 {[%clk 01:17:36]} {[%emt
00:03:03]} Bf5 {[%clk 00:49:42]} {[%emt 00:10:15]} 16. Bd3 {[%clk 01:15:58]}
{[%emt 00:02:08]} Bg5 {[%clk 00:48:37]} {[%emt 00:01:35]} 17. Be3 {[%clk
01:15:05]} {[%emt 00:01:23]} Bxd3 {[%clk 00:46:14]} {[%emt 00:02:52]} 18. Qxd3
{[%clk 01:15:06]} {[%emt 00:00:30]} Bxe3+ {[%clk 00:44:53]} {[%emt 00:01:51]}
19. Qxe3 {[%clk 01:15:23]} {[%emt 00:00:13]} Re8 {[%clk 00:44:59]} {[%emt
00:00:24]} 20. Qd2 {[%clk 01:14:17]} {[%emt 00:01:35]} Re7 {[%clk 00:41:21]}
{[%emt 00:04:09]} 21. Rhe1 {[%clk 01:13:20]} {[%emt 00:01:27]} Rec7 {[%clk
00:39:38]} {[%emt 00:02:12]} 22. c3 {[%clk 01:10:43]} {[%emt 00:03:08]} b5
{[%clk 00:37:34]} {[%emt 00:02:34]} 23. Kb1 {[%clk 01:06:45]} {[%emt 00:04:28]}
Qf6 {[%clk 00:36:02]} {[%emt 00:02:01]} 24. Re3 {[%clk 01:03:36]} {[%emt
00:03:40]} b4 {[%clk 00:28:20]} {[%emt 00:08:11]} 25. cxb4 {[%clk 01:01:07]}
{[%emt 00:03:00]} Qg6+ {[%clk 00:27:53]} {[%emt 00:00:57]} 26. Re4 {[%clk
01:00:36]} {[%emt 00:01:02]} Rc4 {[%clk 00:20:05]} {[%emt 00:08:17]} 27. Rde1
{[%clk 00:55:13]} {[%emt 00:05:53]} h6 {[%clk 00:16:59]} {[%emt 00:03:36]} 28.
Qd3 {[%clk 00:52:44]} {[%emt 00:02:59]} Rxe4 {[%clk 00:15:59]} {[%emt
00:01:30]} 29. fxe4 {[%clk 00:52:13]} {[%emt 00:01:01]} Qxg2 {[%clk 00:13:52]}
{[%emt 00:02:38]} 30. Qe2 {[%clk 00:52:21]} {[%emt 00:00:21]} Qg6 {[%clk
00:13:14]} {[%emt 00:01:08]} 31. Qb5 {[%clk 00:44:37]} {[%emt 00:08:15]} Qg2
{[%clk 00:10:53]} {[%emt 00:02:50]} 32. Qe2 {[%clk 00:41:54]} {[%emt 00:03:13]}
Qg6 {[%clk 00:09:52]} {[%emt 00:01:31]} 1/2-1/2

[Event "Polofinale MCR junioru 2023"]
[Site "Czech Republic"]
[Date "2023.11.13"]
[Round "3.22"]
[White "Sprinar, Michal"]
[Black "Simunek, Jakub Simon"]
[Result "1/2-1/2"]
[TimeControl "90 min per 40 moves + 15 min + 30 sec / move from move 1"]
[WhiteFideId "23714190"]
[BlackFideId "23709464"]
[WhiteElo "1742"]
[BlackElo "1970"]

1. e4 {[%clk 01:30:57]} {[%emt 00:00:03]} e6 {[%clk 01:30:55]} {[%emt
00:00:06]} 2. d4 {[%clk 01:31:22]} {[%emt 00:00:04]} d5 {[%clk 01:31:20]}
{[%emt 00:00:05]} 3. Nd2 {[%clk 01:31:47]} {[%emt 00:00:05]} c5 {[%clk
01:31:47]} {[%emt 00:00:03]} 4. exd5 {[%clk 01:32:14]} {[%emt 00:00:04]} Qxd5
{[%clk 01:32:13]} {[%emt 00:00:04]} 5. Ngf3 {[%clk 01:32:38]} {[%emt 00:00:06]}
cxd4 {[%clk 01:32:38]} {[%emt 00:00:06]} 6. Bc4 {[%clk 01:33:04]} {[%emt
00:00:03]} Qd6 {[%clk 01:33:03]} {[%emt 00:00:05]} 7. O-O {[%clk 01:33:29]}
{[%emt 00:00:04]} Nf6 {[%clk 01:33:31]} {[%emt 00:00:03]} 8. Nb3 {[%clk
01:33:55]} {[%emt 00:00:04]} Nc6 {[%clk 01:33:55]} {[%emt 00:00:06]} 9. Nbxd4
{[%clk 01:34:18]} {[%emt 00:00:07]} Nxd4 {[%clk 01:34:21]} {[%emt 00:00:04]} 10.
Qxd4 {[%clk 01:34:44]} {[%emt 00:00:04]} Qxd4 {[%clk 01:34:46]} {[%emt
00:00:05]} 11. Nxd4 {[%clk 01:35:07]} {[%emt 00:00:06]} Bc5 {[%clk 01:35:13]}
{[%emt 00:00:04]} 12. Nb3 {[%clk 01:35:21]} {[%emt 00:00:16]} Bb6 {[%clk
01:35:38]} {[%emt 00:00:05]} 13. Bf4 {[%clk 01:32:32]} {[%emt 00:03:17]} Bd7
{[%clk 01:32:38]} {[%emt 00:03:31]} 14. Rfd1 {[%clk 01:27:13]} {[%emt
00:05:46]} Rc8 {[%clk 01:29:04]} {[%emt 00:04:06]} 15. Bd3 {[%clk 01:26:30]}
{[%emt 00:01:11]} O-O {[%clk 01:10:03]} {[%emt 00:19:33]} 16. h3 {[%clk
01:22:41]} {[%emt 00:04:19]} Nd5 {[%clk 00:56:32]} {[%emt 00:14:02]} 17. Bd6
{[%clk 01:04:06]} {[%emt 00:19:03]} Rfd8 {[%clk 00:53:13]} {[%emt 00:03:51]} 18.
c4 {[%clk 01:03:08]} {[%emt 00:01:27]} Be8 {[%clk 00:34:15]} {[%emt 00:19:29]}
19. cxd5 {[%clk 00:51:46]} {[%emt 00:11:52]} Rxd6 {[%clk 00:34:43]} {[%emt
00:00:02]} 20. dxe6 {[%clk 00:52:05]} {[%emt 00:00:11]} Rcd8 {[%clk 00:35:08]}
{[%emt 00:00:05]} 21. exf7+ {[%clk 00:52:28]} {[%emt 00:00:07]} Bxf7 {[%clk
00:35:33]} {[%emt 00:00:05]} 22. Bc2 {[%clk 00:52:50]} {[%emt 00:00:05]} Kf8
{[%clk 00:31:20]} {[%emt 00:04:45]} 23. Rxd6 {[%clk 00:50:04]} {[%emt
00:03:16]} Rxd6 {[%clk 00:31:49]} {[%emt 00:00:02]} 24. Rd1 {[%clk 00:47:50]}
{[%emt 00:02:41]} Rf6 {[%clk 00:23:37]} {[%emt 00:08:45]} 25. Rd2 {[%clk
00:46:15]} {[%emt 00:02:01]} Re6 {[%clk 00:22:48]} {[%emt 00:01:23]} 26. Kf1
{[%clk 00:40:07]} {[%emt 00:06:35]} Re5 {[%clk 00:21:43]} {[%emt 00:01:38]} 27.
Bd3 {[%clk 00:18:11]} {[%emt 00:22:26]} h6 {[%clk 00:13:32]} {[%emt 00:08:42]}
28. Be2 {[%clk 00:14:18]} {[%emt 00:04:22]} Bd5 {[%clk 00:07:10]} {[%emt
00:06:53]} 29. f4 {[%clk 00:06:49]} {[%emt 00:07:57]} Rf5 {[%clk 00:07:33]}
{[%emt 00:00:09]} 30. g3 {[%clk 00:07:14]} {[%emt 00:00:04]} Bxb3 {[%clk
00:03:01]} {[%emt 00:05:02]} 31. axb3 {[%clk 00:06:54]} {[%emt 00:00:50]} g5
{[%clk 00:02:45]} {[%emt 00:00:46]} 32. Bd3 {[%clk 00:04:05]} {[%emt 00:03:19]}
Rd5 {[%clk 00:02:18]} {[%emt 00:00:58]} 33. fxg5 {[%clk 00:03:13]} {[%emt
00:01:22]} hxg5 {[%clk 00:01:49]} {[%emt 00:01:00]} 34. Ke2 {[%clk 00:02:40]}
{[%emt 00:01:03]} Re5+ {[%clk 00:01:10]} {[%emt 00:01:09]} 35. Kf3 {[%clk
00:01:49]} {[%emt 00:01:20]} Re3+ {[%clk 00:01:34]} {[%emt 00:00:06]} 36. Kg4
{[%clk 00:01:00]} {[%emt 00:01:20]} Bc7 {[%clk 00:01:56]} {[%emt 00:00:08]} 37.
Kxg5 {[%clk 00:01:16]} {[%emt 00:00:14]} Rxg3+ {[%clk 00:02:24]} {[%emt
00:00:02]} 38. Kh4 {[%clk 00:01:17]} {[%emt 00:00:28]} Rg1 {[%clk 00:01:01]}
{[%emt 00:01:53]} 39. Bc4 {[%clk 00:00:50]} {[%emt 00:00:58]} Ke7 {[%clk
00:00:38]} {[%emt 00:00:53]} 40. Re2+ {[%clk 00:00:42]} {[%emt 00:00:38]} Kd6
{[%clk 00:00:36]} {[%emt 00:00:32]} 41. Rd2+ {[%clk 00:00:36]} {[%emt
00:00:35]} Ke7 {[%clk 00:00:35]} {[%emt 00:00:31]} 42. Re2+ {[%clk 00:00:43]}
{[%emt 00:00:23]} Kd6 {[%clk 00:00:38]} {[%emt 00:00:28]} 43. Rd2+ {[%clk
00:01:08]} {[%emt 00:00:05]} Ke5 {[%clk 00:00:42]} {[%emt 00:00:27]} 44. Rd7
{[%clk 00:05:45]} {[%emt 00:11:23]} Bb6 {[%clk 00:15:46]} {[%emt 00:00:57]} 45.
Re7+ {[%clk 00:05:54]} {[%emt 00:00:20]} Kf5 {[%clk 00:13:27]} {[%emt
00:02:50]} 46. Rf7+ {[%clk 00:06:14]} {[%emt 00:00:10]} Kg6 {[%clk 00:13:17]}
{[%emt 00:00:40]} 47. Rf8 {[%clk 00:06:37]} {[%emt 00:00:06]} Rd1 {[%clk
00:05:21]} {[%emt 00:08:27]} 48. Kg3 {[%clk 00:05:29]} {[%emt 00:01:32]} Bc5
{[%clk 00:04:32]} {[%emt 00:01:25]} 49. Re8 {[%clk 00:03:28]} {[%emt 00:02:20]}
b6 {[%clk 00:03:39]} {[%emt 00:01:34]} 50. Re2 {[%clk 00:02:28]} {[%emt
00:01:25]} a5 {[%clk 00:03:15]} {[%emt 00:01:00]} 51. Kf3 {[%clk 00:01:55]}
{[%emt 00:01:00]} Rd4 {[%clk 00:02:53]} {[%emt 00:00:54]} 52. Re4 {[%clk
00:01:48]} {[%emt 00:00:34]} Rd8 {[%clk 00:02:07]} {[%emt 00:01:19]} 53. Ke2
{[%clk 00:01:08]} {[%emt 00:01:03]} Rf8 {[%clk 00:01:54]} {[%emt 00:00:51]} 54.
Ke1 {[%clk 00:00:37]} {[%emt 00:01:00]} Rf2 {[%clk 00:00:47]} {[%emt 00:01:38]}
55. Re2 {[%clk 00:00:43]} {[%emt 00:00:24]} Rf3 {[%clk 00:01:04]} {[%emt
00:00:13]} 56. Re6+ {[%clk 00:00:47]} {[%emt 00:00:26]} Kg5 {[%clk 00:00:51]}
{[%emt 00:00:43]} 57. Re5+ {[%clk 00:00:44]} {[%emt 00:00:34]} Kf4 {[%clk
00:00:39]} {[%emt 00:00:42]} 58. Rh5 {[%clk 00:00:43]} {[%emt 00:00:22]} Bd4
{[%clk 00:00:37]} {[%emt 00:00:41]} 59. Rh7 {[%clk 00:00:39]} {[%emt 00:00:34]}
Kg3 {[%clk 00:00:41]} {[%emt 00:00:26]} 60. Bf1 {[%clk 00:00:32]} {[%emt
00:00:37]} Rxb3 {[%clk 00:00:38]} {[%emt 00:00:33]} 61. Rd7 {[%clk 00:00:34]}
{[%emt 00:00:27]} Rb4 {[%clk 00:00:43]} {[%emt 00:00:25]} 62. b3 {[%clk
00:00:32]} {[%emt 00:00:32]} Kh4 {[%clk 00:00:35]} {[%emt 00:00:38]} 63. Bc4
{[%clk 00:00:34]} {[%emt 00:00:28]} Bc5 {[%clk 00:00:41]} {[%emt 00:00:24]} 64.
Kd2 {[%clk 00:00:34]} {[%emt 00:00:31]} a4 {[%clk 00:00:50]} {[%emt 00:00:21]}
65. Kc3 {[%clk 00:00:33]} {[%emt 00:00:30]} a3 {[%clk 00:01:01]} {[%emt
00:00:19]} 66. Rd1 {[%clk 00:00:39]} {[%emt 00:00:18]} b5 {[%clk 00:01:14]}
{[%emt 00:00:23]} 67. Be6 {[%clk 00:00:38]} {[%emt 00:00:29]} Re4 {[%clk
00:00:52]} {[%emt 00:00:54]} 68. Bf5 {[%clk 00:00:31]} {[%emt 00:00:37]} Re3+
{[%clk 00:00:57]} {[%emt 00:00:23]} 69. Bd3 {[%clk 00:00:32]} {[%emt 00:00:30]}
Be7 {[%clk 00:01:04]} {[%emt 00:00:22]} 70. b4 {[%clk 00:00:43]} {[%emt
00:00:20]} Bf6+ {[%clk 00:00:35]} {[%emt 00:00:59]} 71. Kb3 {[%clk 00:01:08]}
{[%emt 00:00:04]} Bb2 {[%clk 00:01:02]} {[%emt 00:00:04]} 72. Ka2 {[%clk
00:01:00]} {[%emt 00:00:38]} Re5 {[%clk 00:01:17]} {[%emt 00:00:16]} 73. Rf1
{[%clk 00:00:32]} {[%emt 00:00:58]} Kxh3 {[%clk 00:00:54]} {[%emt 00:00:53]} 74.
Rf5 {[%clk 00:00:38]} {[%emt 00:00:23]} Re3 {[%clk 00:00:34]} {[%emt 00:00:52]}
75. Bxb5 {[%clk 00:00:53]} {[%emt 00:00:15]} Bc1 {[%clk 00:00:47]} {[%emt
00:00:15]} 76. Rc5 {[%clk 00:00:39]} {[%emt 00:00:41]} Bb2 {[%clk 00:00:45]}
{[%emt 00:00:34]} 77. Bf1+ {[%clk 00:00:32]} {[%emt 00:00:36]} Kg3 {[%clk
00:00:53]} {[%emt 00:00:22]} 78. b5 {[%clk 00:00:35]} {[%emt 00:00:28]} Re8
{[%clk 00:00:56]} {[%emt 00:00:26]} 79. Rc4 {[%clk 00:00:33]} {[%emt 00:00:34]}
Kf2 {[%clk 00:00:53]} {[%emt 00:00:32]} 80. Rf4 {[%clk 00:00:32]} {[%emt
00:00:31]} Ke3 {[%clk 00:01:01]} {[%emt 00:00:23]} 81. Ra4 {[%clk 00:00:36]}
{[%emt 00:00:24]} Kf2 {[%clk 00:00:55]} {[%emt 00:00:38]} 82. Bc4 {[%clk
00:00:34]} {[%emt 00:00:31]} Ke3 {[%clk 00:01:03]} {[%emt 00:00:22]} 83. Bd5
{[%clk 00:00:35]} {[%emt 00:00:29]} Rb8 {[%clk 00:00:59]} {[%emt 00:00:34]} 84.
Bc6 {[%clk 00:00:32]} {[%emt 00:00:33]} Kd3 {[%clk 00:01:06]} {[%emt 00:00:22]}
85. Rh4 {[%emt 00:00:33]} Kc3 {[%clk 00:01:15]} {[%emt 00:00:17]} 86. Ra4
{[%clk 00:00:48]} {[%emt 00:00:14]} Bc1 {[%clk 00:01:14]} {[%emt 00:00:31]} 87.
Re4 {[%clk 00:00:40]} {[%emt 00:00:37]} Bb2 {[%clk 00:00:56]} {[%emt 00:00:50]}
88. Re3+ {[%clk 00:00:33]} {[%emt 00:00:38]} Kb4 {[%clk 00:01:15]} {[%emt
00:00:11]} 89. Rb3+ {[%clk 00:00:56]} {[%emt 00:00:05]} Kc5 {[%clk 00:01:31]}
{[%emt 00:00:14]} 90. Bf3 {[%clk 00:00:43]} {[%emt 00:00:41]} Kb6 {[%clk
00:01:34]} {[%emt 00:00:30]} 91. Rd3 {[%clk 00:00:32]} {[%emt 00:00:40]} Rh8
{[%clk 00:01:46]} {[%emt 00:00:19]} 92. Bc6 {[%clk 00:00:33]} {[%emt 00:00:29]}
Rh2 {[%clk 00:02:03]} {[%emt 00:00:13]} 93. Rxa3 {[%clk 00:00:31]} {[%emt
00:00:34]} Bxa3+ {[%clk 00:01:52]} {[%emt 00:00:40]} 94. Kxa3 {[%clk 00:00:56]}
{[%emt 00:00:04]} Rh4 {[%clk 00:01:50]} {[%emt 00:00:32]} 95. Kb3 {[%clk
00:01:20]} {[%emt 00:00:06]} Kc5 {[%clk 00:02:12]} {[%emt 00:00:08]} 96. Kc3
{[%clk 00:00:43]} {[%emt 00:01:08]} 1/2-1/2

[Event "Polofinale MCR junioru 2023"]
[Site "Czech Republic"]
[Date "2023.11.13"]
[Round "3.23"]
[White "Svadlenka, Michal"]
[Black "Vana, Jan"]
[Result "1-0"]
[TimeControl "90 min per 40 moves + 15 min + 30 sec / move from move 1"]
[WhiteFideId "23717068"]
[BlackFideId "23726016"]
[WhiteElo "1689"]
[BlackElo "1965"]

1. e4 {[%clk 01:30:58]} {[%emt 00:00:02]} c5 {[%clk 01:30:54]} {[%emt
00:00:06]} 2. Nf3 {[%clk 01:31:23]} {[%emt 00:00:04]} Nc6 {[%clk 01:31:21]}
{[%emt 00:00:03]} 3. d4 {[%clk 01:31:48]} {[%emt 00:00:05]} cxd4 {[%clk
01:31:48]} {[%emt 00:00:03]} 4. Nxd4 {[%clk 01:32:13]} {[%emt 00:00:06]} Nf6
{[%clk 01:32:14]} {[%emt 00:00:03]} 5. Nc3 {[%clk 01:32:37]} {[%emt 00:00:07]}
e5 {[%clk 01:32:41]} {[%emt 00:00:03]} 6. Ndb5 {[%clk 01:31:44]} {[%emt
00:01:23]} d6 {[%clk 01:33:06]} {[%emt 00:00:05]} 7. Bg5 {[%clk 01:30:54]}
{[%emt 00:01:20]} a6 {[%clk 01:33:29]} {[%emt 00:00:06]} 8. Na3 {[%clk
01:31:18]} {[%emt 00:00:07]} b5 {[%clk 01:33:55]} {[%emt 00:00:04]} 9. Nd5
{[%clk 01:31:34]} {[%emt 00:00:14]} Be7 {[%clk 01:34:22]} {[%emt 00:00:03]} 10.
Bxf6 {[%clk 01:31:24]} {[%emt 00:00:39]} Bxf6 {[%clk 01:34:45]} {[%emt
00:00:07]} 11. c3 {[%clk 01:30:10]} {[%emt 00:01:44]} O-O {[%clk 01:34:35]}
{[%emt 00:00:39]} 12. Nc2 {[%clk 01:29:31]} {[%emt 00:01:10]} Rb8 {[%clk
01:35:01]} {[%emt 00:00:04]} 13. Be2 {[%clk 01:27:41]} {[%emt 00:02:21]} Bg5
{[%clk 01:35:19]} {[%emt 00:00:11]} 14. O-O {[%clk 01:26:36]} {[%emt 00:01:34]}
Kh8 {[%clk 01:35:39]} {[%emt 00:00:10]} 15. Qd3 {[%clk 01:21:54]} {[%emt
00:05:13]} f5 {[%clk 01:20:21]} {[%emt 00:15:49]} 16. Bf3 {[%clk 01:13:07]}
{[%emt 00:09:16]} g6 {[%clk 01:18:35]} {[%emt 00:02:15]} 17. Rad1 {[%clk
01:11:33]} {[%emt 00:02:04]} a5 {[%clk 01:13:54]} {[%emt 00:05:11]} 18. Rfe1
{[%clk 01:05:33]} {[%emt 00:06:31]} f4 {[%clk 01:02:03]} {[%emt 00:12:21]} 19.
b4 {[%clk 00:59:21]} {[%emt 00:06:42]} Be6 {[%clk 00:53:20]} {[%emt 00:09:13]}
20. Rb1 {[%clk 00:54:13]} {[%emt 00:05:38]} Ne7 {[%clk 00:41:34]} {[%emt
00:12:16]} 21. Nxe7 {[%clk 00:50:17]} {[%emt 00:04:27]} Bxe7 {[%clk 00:40:03]}
{[%emt 00:02:01]} 22. Rb2 {[%clk 00:44:48]} {[%emt 00:05:59]} g5 {[%clk
00:32:43]} {[%emt 00:07:49]} 23. h3 {[%clk 00:42:56]} {[%emt 00:02:22]} Qd7
{[%clk 00:28:10]} {[%emt 00:05:04]} 24. bxa5 {[%clk 00:41:09]} {[%emt
00:02:17]} Rg8 {[%clk 00:21:37]} {[%emt 00:07:03]} 25. Nb4 {[%clk 00:38:28]}
{[%emt 00:03:12]} g4 {[%clk 00:19:21]} {[%emt 00:02:45]} 26. hxg4 {[%clk
00:37:05]} {[%emt 00:01:53]} Bxg4 {[%clk 00:18:53]} {[%emt 00:00:59]} 27. Bxg4
{[%clk 00:36:33]} {[%emt 00:01:02]} Qxg4 {[%clk 00:14:54]} {[%emt 00:04:28]} 28.
f3 {[%clk 00:36:54]} {[%emt 00:00:10]} Qh5 {[%clk 00:12:38]} {[%emt 00:02:45]}
29. Nc6 {[%clk 00:34:51]} {[%emt 00:02:34]} Bh4 {[%clk 00:10:07]} {[%emt
00:03:00]} 30. Nxb8 {[%clk 00:22:58]} {[%emt 00:12:23]} Bxe1 {[%clk 00:07:49]}
{[%emt 00:02:48]} 31. Qxd6 {[%clk 00:21:54]} {[%emt 00:01:34]} Qe8 {[%clk
00:06:23]} {[%emt 00:01:56]} 32. Nc6 {[%clk 00:14:43]} {[%emt 00:07:42]} Bxc3
{[%clk 00:04:19]} {[%emt 00:02:34]} 33. Qf6+ {[%clk 00:14:28]} {[%emt
00:00:45]} Rg7 {[%clk 00:04:43]} {[%emt 00:00:06]} 34. Rxb5 {[%clk 00:14:37]}
{[%emt 00:00:21]} Bd4+ {[%clk 00:00:45]} {[%emt 00:04:28]} 35. Kf1 {[%clk
00:14:58]} {[%emt 00:00:09]} Ba7 {[%clk 00:00:33]} {[%emt 00:00:42]} 36. Rb7
{[%emt 00:01:42]} 1-0